fUSD/lending_fUSD_20251228
["ID","MTS","AMOUNT","RATE_DAILY","PERIOD"]
[399924847,1766880647072,-500.0,0.00035616,9]
[399924848,1766880647082,-500.0,0.00035616,9]
[399924849,1766880647092,-500.0,0.00035616,9]
[399924850,1766880647102,-500.0,0.00035616,9]
[399924851,1766880647111,-400.0,0.00035616,9]
[399924852,1766880647121,-500.0,0.00035616,9]
[399924853,1766880647131,-1041.75110229,0.00035616,9]
[399924854,1766880647140,-500.0,0.00035616,9]
[399924855,1766880647149,-565.23513367,0.00035616,9]
[399924856,1766880647159,-429.83118073,0.00035616,9]
[399924857,1766880647169,-409.96689649,0.00035616,9]
[399924858,1766880647179,-500.0,0.00035616,9]
[399924859,1766880647189,-436.45398471,0.00035616,9]
[399924860,1766880647199,-297.35143023,0.00035616,9]
[399924861,1766880647209,-500.0,0.00035616,9]
[399924862,1766880647219,-500.0,0.00035616,9]
[399924863,1766880647229,-410.27159188,0.00035616,9]
[399924864,1766880647239,-429.78064464,0.00035616,9]
[399924865,1766880647249,-400.0,0.00035616,9]
[399924866,1766880647260,-411.24796854,0.00035616,9]
[399924867,1766880647269,-500.0,0.00035616,9]
[399924868,1766880647279,-415.58794214,0.00035616,9]
[399924869,1766880647290,-408.94589989,0.00035616,9]
[399924870,1766880647300,-418.73464199,0.00035616,9]
[399924871,1766880647310,-414.50681178,0.00035616,9]
[399924872,1766880647320,-400.0,0.00035616,9]
[399924873,1766880647330,-500.0,0.00035616,9]
[399924874,1766880647340,-500.0,0.00035616,9]
[399924875,1766880647350,-409.64797831,0.00035616,9]
[399924876,1766880647360,-500.0,0.00035616,9]
[399924877,1766880647370,-196.91753584,0.00035616,9]
[399924878,1766880647380,-500.0,0.00035616,9]
[399924879,1766880647390,-500.0,0.00035616,9]
[399924880,1766880647400,-410.58381968,0.00035616,9]
[399924881,1766880647410,-403.88710295,0.00035616,9]
[399924882,1766880647420,-400.0,0.00035616,9]
[399924883,1766880647430,-500.0,0.00035616,9]
[399924884,1766880647440,-500.0,0.00035616,9]
[399924885,1766880647450,-412.958829,0.00035616,9]
[399924886,1766880647460,-400.0,0.00035616,9]
[399924887,1766880647470,-500.0,0.00035616,9]
[399924888,1766880647480,-500.0,0.00035616,9]
[399924889,1766880647490,-406.97099483,0.00035616,9]
[399924890,1766880647500,-410.0579551,0.00035616,9]
[399924891,1766880647509,-430.74438897,0.00035616,9]
[399924892,1766880647519,-500.0,0.00035616,9]
[399924893,1766880647529,-500.0,0.00035616,9]
[399924894,1766880647538,-500.0,0.00035616,9]
[399924895,1766880647548,-500.0,0.00035616,9]
[399924896,1766880647560,-500.0,0.00035616,9]
[399924897,1766880647569,-500.0,0.00035616,9]
[399924898,1766880647579,-406.46864447,0.00035616,9]
[399924899,1766880647589,-396.79874851,0.00035616,9]
[399924900,1766880647598,-500.0,0.00035616,9]
[399924901,1766880647608,-500.0,0.00035616,9]
[399924902,1766880647617,-622.55300032,0.00035616,9]
[399924903,1766880647626,-416.60111008,0.00035616,9]
[399924904,1766880647636,-408.06977181,0.00035616,9]
[399924905,1766880647645,-410.93962456,0.00035616,9]
[399924906,1766880647655,-500.0,0.00035616,9]
[399924907,1766880647665,-409.17964886,0.00035616,9]
[399924908,1766880647674,-578.49637201,0.00035616,9]
[399924909,1766880647684,-409.79289386,0.00035616,9]
[399924910,1766880647694,-400.0,0.00035616,9]
[399924911,1766880647704,-430.88060167,0.00035616,9]
[399924913,1766880647714,-409.80754643,0.00035616,9]
[399924914,1766880647723,-500.0,0.00035616,9]
[399924915,1766880647733,-500.0,0.00035616,9]
[399924916,1766880647742,-617.03993956,0.00035616,9]
[399924917,1766880647752,-440.49599239,0.00035616,9]
[399924918,1766880647762,-450.16219433,0.00035616,9]
[399924919,1766880647771,-422.91305896,0.00035616,9]
[399924920,1766880647781,-522.6390235,0.00035616,9]
[399924921,1766880647791,-500.0,0.00035616,9]
[399924922,1766880647801,-400.0,0.00035616,9]
[399924923,1766880647810,-500.0,0.00035616,9]
[399924924,1766880647820,-400.0,0.00035616,9]
[399924925,1766880647829,-400.0,0.00035616,9]
[399924926,1766880647839,-500.0,0.00035616,9]
[399924927,1766880647849,-500.0,0.00035616,9]
[399924928,1766880647859,-428.00843306,0.00035616,9]
[399924929,1766880647868,-500.0,0.00035616,9]
[399924930,1766880647877,-500.0,0.00035616,9]
[399924931,1766880647887,-404.40551085,0.00035616,9]
[399924932,1766880647896,-500.0,0.00035616,9]
[399924933,1766880647906,-500.0,0.00035616,9]
[399924934,1766880647916,-400.0,0.00035616,9]
[399924935,1766880647925,-400.0,0.00035616,9]
[399924936,1766880647935,-500.0,0.00035616,9]
[399924937,1766880647945,-400.0,0.00035616,9]
[399924938,1766880647954,-400.0,0.00035616,9]
[399924939,1766880647964,-500.0,0.00035616,9]
[399924940,1766880647973,-500.0,0.00035616,9]
[399924941,1766880647983,-400.0,0.00035616,9]
[399924942,1766880647994,-400.68986501,0.00035616,9]
[399924943,1766880648004,-534.81317839,0.00035616,9]
[399924944,1766880648015,-500.0,0.00035616,9]
[399924945,1766880648024,-421.14733895,0.00035616,9]
[399924946,1766880648034,-500.0,0.00035616,9]
[399924947,1766880648057,-603.04975054,0.00035616,9]
[399924948,1766880648067,-400.0,0.00035616,9]
[399924949,1766880648076,-500.0,0.00035616,9]
[399924950,1766880648087,-434.75451459,0.00035616,9]
[399924951,1766880648096,-500.0,0.00035616,9]
[399924952,1766880648106,-400.0,0.00035616,9]
[399924953,1766880648117,-407.90878698,0.00035616,9]
[399924954,1766880648127,-409.54105327,0.00035616,9]
[399924955,1766880648137,-500.0,0.00035616,9]
[399924956,1766880648147,-400.0,0.00035616,9]
[399924957,1766880648157,-500.0,0.00035616,9]
[399924958,1766880648166,-433.66278198,0.00035616,9]
[399924959,1766880648177,-500.0,0.00035616,9]
[399924960,1766880648186,-416.65513937,0.00035616,9]
[399924961,1766880648196,-415.21369606,0.00035616,9]
[399924962,1766880648205,-500.0,0.00035616,9]
[399924963,1766880648215,-426.09634769,0.00035616,9]
[399924964,1766880648224,-500.0,0.00035616,9]
[399924965,1766880648234,-400.0,0.00035616,9]
[399924966,1766880648243,-500.0,0.00035616,9]
[399924967,1766880648334,-500.0,0.00035616,9]
[399924968,1766880648344,-331.20072529,0.00035616,9]
[399924969,1766880648354,-400.0,0.00035616,9]
[399924970,1766880648364,-500.0,0.00035616,9]
[399924971,1766880648379,-400.0,0.00035616,9]
[399924972,1766880648388,-500.0,0.00035616,9]
[399924973,1766880648398,-500.0,0.00035616,9]
[399924974,1766880648407,-400.06055101,0.00035616,9]
[399924975,1766880648417,-500.0,0.00035616,9]
[399924976,1766880648426,-400.0,0.00035616,9]
[399924977,1766880648435,-641.02756563,0.00035616,9]
[399924978,1766880648445,-500.0,0.00035616,9]
[399924979,1766880648455,-500.0,0.00035616,9]
[399924980,1766880648464,-500.0,0.00035616,9]
[399924981,1766880648474,-500.0,0.00035616,9]
[399924982,1766880648483,-500.0,0.00035616,9]
[399924983,1766880648493,-392.89182845,0.00035616,9]
[399924984,1766880648503,-489.07761767,0.00035616,9]
[399924985,1766880648512,-414.85336003,0.00035616,9]
[399924986,1766880648522,-460.85068214,0.00035616,9]
[399924987,1766880648533,-412.49008198,0.00035616,9]
[399924988,1766880648542,-500.0,0.00035616,9]
[399924989,1766880648553,-500.0,0.00035616,9]
[399924990,1766880648564,-400.0,0.00035616,9]
[399924991,1766880648574,-500.0,0.00035616,9]
[399924992,1766880648583,-500.0,0.00035616,9]
[399924993,1766880648592,-500.0,0.00035616,9]
[399924994,1766880648602,-500.0,0.00035616,9]
[399924995,1766880648611,-400.0,0.00035616,9]
[399924996,1766880648621,-500.0,0.00035616,9]
[399924997,1766880648630,-500.0,0.00035616,9]
[399924998,1766880648640,-321.82260599,0.00035616,9]
[399924999,1766880648649,-500.0,0.00035616,9]
[399925000,1766880648658,-253.18972927,0.00035616,9]
[399925001,1766880648668,-500.0,0.00035616,9]
[399925002,1766880648677,-500.0,0.00035616,9]
[399925003,1766880648686,-610.45383173,0.00035616,9]
[399925004,1766880648695,-500.0,0.00035616,9]
[399925005,1766880648704,-419.76470854,0.00035616,9]
[399925006,1766880648714,-418.41415196,0.00035616,9]
[399925007,1766880648724,-433.64068803,0.00035616,9]
[399925008,1766880648733,-422.3761475,0.00035616,9]
[399925009,1766880648748,-427.57133567,0.00035616,9]
[399925010,1766880648757,-500.0,0.00035616,9]
[399925011,1766880648767,-430.12399028,0.00035616,9]
[399925012,1766880648776,-500.0,0.00035616,9]
[399925013,1766880648786,-400.0,0.00035616,9]
[399925014,1766880648796,-500.0,0.00035616,9]
[399925015,1766880648805,-500.0,0.00035616,9]
[399925016,1766880648815,-500.0,0.00035616,9]
[399925017,1766880648824,-500.0,0.00035616,9]
[399925018,1766880648834,-500.0,0.00035616,9]
[399925019,1766880648844,-400.0,0.00035616,9]
[399925020,1766880648853,-500.0,0.00035616,9]
[399925021,1766880648863,-413.6567306,0.00035616,9]
[399925022,1766880648873,-430.13134668,0.00035616,9]
[399925023,1766880648883,-400.0,0.00035616,9]
[399925024,1766880648892,-400.0,0.00035616,9]
[399925025,1766880648903,-423.94874077,0.00035616,9]
[399925026,1766880648912,-500.0,0.00035616,9]
[399925027,1766880648922,-500.0,0.00035616,9]
[399925028,1766880648932,-500.0,0.00035616,9]
[399925029,1766880648943,-420.91119327,0.00035616,9]
[399925030,1766880648953,-500.0,0.00035616,9]
[399925031,1766880648963,-400.0,0.00035616,9]
[399925032,1766880648973,-500.0,0.00035616,9]
[399925033,1766880648983,-500.0,0.00035616,9]
[399925034,1766880648994,-315.33965945,0.00035616,9]
[399925035,1766880649004,-500.0,0.00035616,9]
[399925036,1766880649015,-500.0,0.00035616,9]
[399925037,1766880649025,-500.0,0.00035616,9]
[399925038,1766880649034,-409.37037174,0.00035616,9]
[399925039,1766880649044,-425.1988051,0.00035616,9]
[399925040,1766880649054,-432.59870938,0.00035616,9]
[399925041,1766880649063,-500.0,0.00035616,9]
[399925042,1766880649073,-423.42108705,0.00035616,9]
[399925043,1766880649083,-411.48423226,0.00035616,9]
[399925044,1766880649092,-500.0,0.00035616,9]
[399925045,1766880649102,-413.18195599,0.00035616,9]
[399925046,1766880649111,-415.41620404,0.00035616,9]
[399925047,1766880649124,-500.0,0.00035616,9]
[399925048,1766880649134,-500.0,0.00035616,9]
[399925049,1766880649143,-500.0,0.00035616,9]
[399925050,1766880649153,-510.02449753,0.00035616,9]
[399925051,1766880649162,-361.46,0.00035616,9]
[399925052,1766880649173,-400.0,0.00035616,9]
[399925053,1766880649182,-595.55422569,0.00035616,9]
[399925054,1766880649192,-400.0,0.00035616,9]
[399925055,1766880649202,-400.0,0.00035616,9]
[399925056,1766880649211,-423.52183369,0.00035616,9]
[399925057,1766880649221,-410.31633594,0.00035616,9]
[399925058,1766880649231,-416.0338469,0.00035616,9]
[399925059,1766880649240,-413.06167835,0.00035616,9]
[399925060,1766880649249,-418.02268866,0.00035616,9]
[399925061,1766880649259,-400.0,0.00035616,9]
[399925062,1766880649268,-500.0,0.00035616,9]
[399925063,1766880649278,-500.0,0.00035616,9]
[399925064,1766880649288,-467.18262915,0.00035616,9]
[399925065,1766880649298,-412.91319842,0.00035616,9]
[399925066,1766880649308,-404.25265799,0.00035616,9]
[399925067,1766880649318,-500.0,0.00035616,9]
[399925068,1766880649331,-359.47003236,0.00035616,9]
[399925069,1766880649341,-409.65341812,0.00035616,9]
[399925070,1766880649350,-409.94107134,0.00035616,9]
[399925071,1766880649359,-440.7150287,0.00035616,9]
[399925072,1766880649369,-406.9507165,0.00035616,9]
[399925073,1766880649379,-500.0,0.00035616,9]
[399925074,1766880649388,-500.0,0.00035616,9]
[399925075,1766880649398,-500.0,0.00035616,9]
[399925076,1766880649408,-500.0,0.00035616,9]
[399925077,1766880649417,-500.0,0.00035616,9]
[399925078,1766880649427,-403.31667164,0.00035616,9]
[399925079,1766880649437,-328.4419324,0.00035616,9]
[399925080,1766880649446,-500.0,0.00035616,9]
[399925081,1766880649456,-500.0,0.00035616,9]
[399925082,1766880649465,-410.99449444,0.00035616,9]
[399925083,1766880649475,-500.0,0.00035616,9]
[399925084,1766880649485,-500.0,0.00035616,9]
[399925085,1766880649495,-500.0,0.00035616,9]
[399925086,1766880649505,-500.0,0.00035616,9]
[399925087,1766880649519,-466.81111476,0.00035616,9]
[399925088,1766880649529,-500.0,0.00035616,9]
[399925089,1766880649538,-413.18830762,0.00035616,9]
[399925090,1766880649549,-405.26737624,0.00035616,9]
[399925091,1766880649561,-500.0,0.00035616,9]
[399925092,1766880649571,-500.0,0.00035616,9]
[399925093,1766880649581,-605.45118163,0.00035616,9]
[399925094,1766880649591,-410.6394641,0.00035616,9]
[399925095,1766880649600,-400.0,0.00035616,9]
[399925096,1766880649610,-344.21204105,0.00035616,9]
[399925097,1766880649620,-400.0,0.00035616,9]
[399925098,1766880649630,-500.0,0.00035616,9]
[399925099,1766880649639,-500.0,0.00035616,9]
[399925100,1766880649648,-500.0,0.00035616,9]
[399925101,1766880649657,-500.0,0.00035616,9]
[399925102,1766880649667,-409.34871315,0.00035616,9]
[399925103,1766880649677,-500.0,0.00035616,9]
[399925104,1766880649687,-233.88,0.00035616,9]
[399925105,1766880649697,-500.0,0.00035616,9]
[399925106,1766880649709,-500.0,0.00035616,9]
[399925107,1766880649719,-437.48236678,0.00035616,9]
[399925108,1766880649729,-406.74613099,0.00035616,9]
[399925109,1766880649739,-400.0,0.00035616,9]
[399925110,1766880649749,-311.88949593,0.00035616,9]
[399925111,1766880649759,-407.88332476,0.00035616,9]
[399925112,1766880649768,-500.0,0.00035616,9]
[399925113,1766880649778,-400.0,0.00035616,9]
[399925114,1766880649788,-322.90171004,0.00035616,9]
[399925115,1766880649798,-405.6473604,0.00035616,9]
[399925116,1766880649808,-500.0,0.00035616,9]
[399925117,1766880649818,-400.0,0.00035616,9]
[399925118,1766880649827,-408.03824554,0.00035616,9]
[399925119,1766880649837,-430.76233166,0.00035616,9]
[399925120,1766880649847,-500.0,0.00035616,9]
[399925121,1766880649862,-405.55889765,0.00035616,9]
[399925122,1766880649872,-411.90719216,0.00035616,9]
[399925123,1766880649882,-400.0,0.00035616,9]
[399925124,1766880649892,-406.57695248,0.00035616,9]
[399925125,1766880649901,-500.0,0.00035616,9]
[399925126,1766880649912,-411.33533345,0.00035616,9]
[399925127,1766880649922,-416.59219846,0.00035616,9]
[399925128,1766880649932,-500.0,0.00035616,9]
[399925129,1766880649942,-429.14115516,0.00035616,9]
[399925130,1766880649951,-500.0,0.00035616,9]
[399925131,1766880649961,-500.0,0.00035616,9]
[399925132,1766880649971,-500.0,0.00035616,9]
[399925133,1766880649981,-500.0,0.00035616,9]
[399925134,1766880649991,-500.0,0.00035616,9]
[399925135,1766880650001,-500.0,0.00035616,9]
[399925136,1766880650010,-402.97438948,0.00035616,9]
[399925137,1766880650021,-500.0,0.00035616,9]
[399925138,1766880650030,-500.0,0.00035616,9]
[399925139,1766880650040,-500.0,0.00035616,9]
[399925140,1766880650050,-463.34077068,0.00035616,9]
[399925141,1766880650059,-500.0,0.00035616,9]
[399925142,1766880650069,-463.97659204,0.00035616,9]
[399925143,1766880650078,-500.0,0.00035616,9]
[399925144,1766880650088,-400.0,0.00035616,9]
[399925145,1766880650107,-404.27091909,0.00035616,9]
[399925146,1766880650119,-404.57060035,0.00035616,9]
[399925147,1766880650129,-426.04349597,0.00035616,9]
[399925148,1766880650140,-400.0,0.00035616,9]
[399925149,1766880650149,-410.68962433,0.00035616,9]
[399925150,1766880650160,-500.0,0.00035616,9]
[399925151,1766880650170,-500.0,0.00035616,9]
[399925152,1766880650180,-426.24783642,0.00035616,9]
[399925153,1766880650190,-502.40332327,0.00035616,9]
[399925154,1766880650199,-500.0,0.00035616,9]
[399925155,1766880650209,-404.37269221,0.00035616,9]
[399925156,1766880650219,-500.0,0.00035616,9]
[399925157,1766880650228,-500.0,0.00035616,9]
[399925158,1766880650238,-509.95275093,0.00035616,9]
[399925159,1766880650248,-400.0,0.00035616,9]
[399925160,1766880650257,-500.0,0.00035616,9]
[399925161,1766880650267,-415.50574063,0.00035616,9]
[399925162,1766880650276,-420.08270813,0.00035616,9]
[399925163,1766880650286,-400.0,0.00035616,9]
[399925164,1766880650296,-404.01494929,0.00035616,9]
[399925165,1766880650306,-500.0,0.00035616,9]
[399925166,1766880650316,-465.08176222,0.00035616,9]
[399925167,1766880650326,-430.09619001,0.00035616,9]
[399925168,1766880650336,-500.0,0.00035616,9]
[399925169,1766880650346,-500.0,0.00035616,9]
[399925170,1766880650356,-500.0,0.00035616,9]
[399925171,1766880650366,-500.0,0.00035616,9]
[399925172,1766880650376,-406.2242033,0.00035616,9]
[399925173,1766880650386,-405.79221202,0.00035616,9]
[399925174,1766880650396,-457.72974973,0.00035616,9]
[399925175,1766880650405,-500.0,0.00035616,9]
[399925176,1766880650415,-402.61861095,0.00035616,9]
[399925177,1766880650425,-390.47251407,0.00035616,9]
[399925178,1766880650435,-400.0,0.00035616,9]
[399925179,1766880650444,-406.46321781,0.00035616,9]
[399925180,1766880650454,-411.2879665,0.00035616,9]
[399925181,1766880650464,-500.0,0.00035616,9]
[399925182,1766880650478,-406.82587324,0.00035616,9]
[399925183,1766880650488,-500.0,0.00035616,9]
[399925184,1766880650497,-412.82266519,0.00035616,9]
[399925185,1766880650507,-500.0,0.00035616,9]
[399925186,1766880650517,-500.0,0.00035616,9]
[399925187,1766880650527,-402.97364282,0.00035616,9]
[399925188,1766880650537,-402.85762594,0.00035616,9]
[399925189,1766880650547,-405.62582418,0.00035616,9]
[399925190,1766880650559,-500.0,0.00035616,9]
[399925191,1766880650568,-500.0,0.00035616,9]
[399925192,1766880650578,-404.43788449,0.00035616,9]
[399925193,1766880650587,-405.76167815,0.00035616,9]
[399925194,1766880650597,-500.0,0.00035616,9]
[399925195,1766880650607,-400.0,0.00035616,9]
[399925196,1766880650616,-406.06270123,0.00035616,9]
[399925197,1766880650625,-500.0,0.00035616,9]
[399925198,1766880650636,-500.0,0.00035616,9]
[399925199,1766880650646,-401.26939888,0.00035616,9]
[399925200,1766880650656,-500.0,0.00035616,9]
[399925201,1766880650665,-404.69474061,0.00035616,9]
[399925202,1766880650675,-500.0,0.00035616,9]
[399925203,1766880650684,-500.0,0.00035616,9]
[399925204,1766880650693,-409.88653157,0.00035616,9]
[399925205,1766880650703,-500.0,0.00035616,9]
[399925206,1766880650712,-413.32543622,0.00035616,9]
[399925207,1766880650721,-500.0,0.00035616,9]
[399925208,1766880650731,-400.0,0.00035616,9]
[399925209,1766880650741,-408.82620735,0.00035616,9]
[399925210,1766880650752,-404.47397276,0.00035616,9]
[399925211,1766880650762,-500.0,0.00035616,9]
[399925212,1766880650771,-406.37967247,0.00035616,9]
[399925213,1766880650782,-400.0,0.00035616,9]
[399925214,1766880650791,-404.96114342,0.00035616,9]
[399925215,1766880650801,-230.59844011,0.00035616,9]
[399925216,1766880650810,-500.0,0.00035616,9]
[399925217,1766880650820,-500.0,0.00035616,9]
[399925218,1766880650829,-510.51946461,0.00035616,9]
[399925219,1766880650839,-400.0,0.00035616,9]
[399925220,1766880650848,-563.07286896,0.00035616,9]
[399925221,1766880650858,-463.99848379,0.00035616,9]
[399925222,1766880650868,-405.52557205,0.00035616,9]
[399925223,1766880650878,-500.0,0.00035616,9]
[399925224,1766880650888,-400.0,0.00035616,9]
[399925225,1766880650898,-500.0,0.00035616,9]
[399925226,1766880650908,-500.0,0.00035616,9]
[399925227,1766880650918,-500.0,0.00035616,9]
[399925228,1766880650929,-451.89694028,0.00035616,9]
[399925229,1766880650939,-500.0,0.00035616,9]
[399925230,1766880650948,-408.643201,0.00035616,9]
[399925231,1766880650958,-500.0,0.00035616,9]
[399925232,1766880650968,-353.77753769,0.00035616,9]
[399925233,1766880650978,-405.47154572,0.00035616,9]
[399925234,1766880650988,-500.0,0.00035616,9]
[399925235,1766880650998,-500.0,0.00035616,9]
[399925236,1766880651008,-500.0,0.00035616,9]
[399925237,1766880651018,-587.6175362,0.00035616,9]
[399925238,1766880651029,-427.75534819,0.00035616,9]
[399925239,1766880651040,-407.37716107,0.00035616,9]
[399925240,1766880651051,-500.0,0.00035616,9]
[399925241,1766880651061,-500.0,0.00035616,9]
[399925242,1766880651071,-405.68847952,0.00035616,9]
[399925243,1766880651082,-251.07597262,0.00035616,9]
[399925244,1766880651092,-413.58334665,0.00035616,9]
[399925245,1766880651102,-404.06615695,0.00035616,9]
[399925246,1766880651112,-500.0,0.00035616,9]
[399925247,1766880651122,-500.0,0.00035616,9]
[399925248,1766880651132,-500.0,0.00035616,9]
[399925249,1766880651141,-500.0,0.00035616,9]
[399925250,1766880651152,-400.0,0.00035616,9]
[399925251,1766880651161,-500.0,0.00035616,9]
[399925252,1766880651171,-500.0,0.00035616,9]
[399925253,1766880651180,-406.25434843,0.00035616,9]
[399925254,1766880651190,-500.0,0.00035616,9]
[399925255,1766880651199,-400.0,0.00035616,9]
[399925256,1766880651209,-199.0779331,0.00035616,9]
[399925257,1766880651219,-411.08621402,0.00035616,9]
[399925258,1766880651228,-420.55678679,0.00035616,9]
[399925259,1766880651238,-500.0,0.00035616,9]
[399925260,1766880651248,-410.45726411,0.00035616,9]
[399925261,1766880651257,-500.0,0.00035616,9]
[399925262,1766880651267,-500.0,0.00035616,9]
[399925263,1766880651278,-500.0,0.00035616,9]
[399925264,1766880651287,-500.0,0.00035616,9]
[399925265,1766880651297,-500.0,0.00035616,9]
[399925266,1766880651306,-500.0,0.00035616,9]
[399925267,1766880651316,-413.76865237,0.00035616,9]
[399925268,1766880651325,-500.0,0.00035616,9]
[399925269,1766880651335,-442.21915848,0.00035616,9]
[399925270,1766880651344,-500.0,0.00035616,9]
[399925271,1766880651354,-500.0,0.00035616,9]
[399925272,1766880651363,-500.0,0.00035616,9]
[399925273,1766880651373,-500.0,0.00035616,9]
[399925274,1766880651382,-500.0,0.00035616,9]
[399925275,1766880651391,-178.67,0.00035616,9]
[399925276,1766880651401,-500.0,0.00035616,9]
[399925277,1766880651411,-500.0,0.00035616,9]
[399925278,1766880651421,-201.20185578,0.00035616,9]
[399925279,1766880651430,-400.0,0.00035616,9]
[399925280,1766880651440,-500.0,0.00035616,9]
[399925281,1766880651449,-999.0,0.00035616,120]
[399925282,1766880651459,-500.0,0.00035616,9]
[399925283,1766880651468,-500.0,0.00035616,9]
[399925284,1766880651477,-580.62567087,0.00035616,9]
[399925285,1766880651487,-500.0,0.00035616,9]
[399925286,1766880651497,-400.0,0.00035616,9]
[399925287,1766880651506,-284.63871166,0.00035616,9]
[399925288,1766880651516,-500.0,0.00035616,9]
[399925289,1766880651525,-500.0,0.00035616,9]
[399925290,1766880651536,-500.0,0.00035616,9]
[399925291,1766880651545,-258.53345845,0.00035616,9]
[399925292,1766880651558,-312.7022948,0.00035616,9]
[399925293,1766880651568,-500.0,0.00035616,9]
[399925294,1766880651577,-500.0,0.00035616,9]
[399925295,1766880651587,-417.02549639,0.00035616,9]
[399925296,1766880651596,-400.0,0.00035616,9]
[399925297,1766880651606,-500.0,0.00035616,9]
[399925298,1766880651615,-401.8681693,0.00035616,9]
[399925299,1766880651625,-400.0,0.00035616,9]
[399925300,1766880651635,-500.0,0.00035616,9]
[399925301,1766880651644,-494.54289782,0.00035616,9]
[399925302,1766880651654,-500.0,0.00035616,9]
[399925303,1766880651663,-400.0,0.00035616,9]
[399925304,1766880651674,-500.0,0.00035616,9]
[399925305,1766880651684,-500.0,0.00035616,9]
[399925306,1766880651693,-500.0,0.00035616,9]
[399925307,1766880651703,-411.74857606,0.00035616,9]
[399925308,1766880651712,-500.0,0.00035616,9]
[399925309,1766880651723,-386.58079546,0.00035616,9]
[399925310,1766880651733,-500.0,0.00035616,9]
[399925311,1766880651743,-500.0,0.00035616,9]
[399925312,1766880651752,-500.0,0.00035616,9]
[399925313,1766880651762,-500.0,0.00035616,9]
[399925314,1766880651772,-500.0,0.00035616,9]
[399925315,1766880651782,-438.97023252,0.00035616,9]
[399925316,1766880651792,-500.0,0.00035616,9]
[399925317,1766880651801,-500.0,0.00035616,9]
[399925318,1766880651811,-500.0,0.00035616,9]
[399925319,1766880651821,-500.0,0.00035616,9]
[399925320,1766880651831,-500.0,0.00035616,9]
[399925321,1766880651842,-500.0,0.00035616,9]
[399925322,1766880651851,-500.0,0.00035616,9]
[399925323,1766880651861,-400.0,0.00035616,9]
[399925324,1766880651871,-400.0,0.00035616,9]
[399925325,1766880651881,-500.0,0.00035616,9]
[399925326,1766880651892,-500.0,0.00035616,9]
[399925327,1766880651902,-500.0,0.00035616,9]
[399925328,1766880651912,-500.0,0.00035616,9]
[399925329,1766880651922,-430.99286565,0.00035616,9]
[399925330,1766880651932,-500.0,0.00035616,9]
[399925331,1766880651941,-500.0,0.00035616,9]
[399925332,1766880651952,-400.0,0.00035616,9]
[399925333,1766880651962,-607.2349194,0.00035616,9]
[399925334,1766880651973,-500.0,0.00035616,9]
[399925335,1766880651983,-500.0,0.00035616,9]
[399925336,1766880651993,-468.5292306,0.00035616,9]
[399925337,1766880652004,-454.64961583,0.00035616,9]
[399925338,1766880652014,-500.0,0.00035616,9]
[399925339,1766880652025,-500.0,0.00035616,9]
[399925340,1766880652036,-500.0,0.00035616,9]
[399925341,1766880652047,-500.0,0.00035616,9]
[399925342,1766880652057,-500.0,0.00035616,9]
[399925343,1766880652067,-500.0,0.00035616,9]
[399925344,1766880652077,-500.0,0.00035616,9]
[399925345,1766880652087,-500.0,0.00035616,9]
[399925346,1766880652097,-500.0,0.00035616,9]
[399925347,1766880652107,-447.73565072,0.00035616,9]